Cogmind - Beta 16 @@@ ROGUE MODE // 2025.11.02 @ 04:53:42 Player: Red Box Result: Destroyed by PT-WXI(R) with Subdweller Machine Gun Performance ------------- Evolutions (0) 0 Regions Visited (2) 400 Robots Destroyed (29) 145 Value Destroyed (677) 677 Prototype IDs (3) 60 Alien Tech Used (0) 0 Bonus (0) 0 TOTAL SCORE: 1282 Bonus ------- None Cogmind --------- Core Integrity 0/250 Matter 292/300 Energy 198/200 System Corruption 1% Temperature Cool (0) Movement Rolling (110) Ox2 Location -10/Subcaves Parts ------- > --- POWER (1) -------- Subdweller Power Source > --- PROPULSION (2) --- Wheel Wheel > --- UTILITY (2) ------ Improved Heat Sink High-capacity Storage Unit > --- WEAPON (2) ------- Medium Laser Subdweller Laser > --- INVENTORY (20) --- Ion Engine Hover Unit Small Storage Unit Machine Analyzer Subdweller Optics Sensor Array Beam Cannon Battle Cannon Grenade Launcher Hammer Piercing Trap Scrap Shield Fragment (48) Scrap Shield Fragment (47) Scrap Shield Fragment (47) Scrap Shield Fragment (46) Scrap Shield Fragment (46) Scrap Shield Fragment (45) Scrap Shield Fragment (20) Peak State ------------ > --- POWER ------------ Subdweller Power Source > --- PROPULSION ------- Wheel Wheel > --- UTILITY ---------- Improved Heat Sink High-capacity Storage Unit > --- WEAPON ----------- Medium Laser Beam Cannon > --- INVENTORY -------- Wheel Hover Unit Small Storage Unit Machine Analyzer Subdweller Optics Sensor Array Subdweller Laser Battle Cannon Grenade Launcher Hammer Piercing Trap Scrap Shield Fragment Scrap Shield Fragment Scrap Shield Fragment Scrap Shield Fragment Scrap Shield Fragment Scrap Shield Fragment Scrap Shield Fragment [Rating: 13] Favorites ----------- Power Light Ion Engine Engine Light Ion Engine Power Core Light Nuclear Core Propulsion Hover Unit Treads Light Treads Leg Aluminum Leg Wheel Wheel Hover Unit Hover Unit Utility Small Storage Unit Device Improved Heat Sink Storage Small Storage Unit Weapon Medium Laser Energy Gun Medium Laser Energy Cannon Beam Cannon Ballistic Gun Assault Rifle Special Weapon Mining Laser Impact Weapon Hammer Build | -11 -10 -10 ------- Run | Yrd Mat Sub Slots Evolved . | . . . Power . | . . . Propulsion . | . . . Utility . | . . . Weapon . | . . . Parts Attached 30 | 7 16 7 Power 4 | 1 2 1 Engine 3 | 1 1 1 Core 1 | . 1 . Reactor . | . . . Propulsion 12 | 2 7 3 Treads 2 | . 2 . Leg 4 | 2 2 . Wheel 3 | . . 3 Hover 3 | . 3 . Flight . | . . . Utility 5 | 2 2 1 Device 3 | 1 2 . Storage 2 | 1 . 1 Processor . | . . . Hackware . | . . . Protection . | . . . Artifact . | . . . Weapon 9 | 2 5 2 Energy Gun 4 | . 3 1 Energy Cannon 1 | . . 1 Ballistic Gun 2 | 2 . . Ballistic Cannon . | . . . Launcher . | . . . Special Weapon 1 | . 1 . Impact Weapon 1 | . 1 . Slashing Weapon . | . . . Piercing Weapon . | . . . Special Melee Weapon . | . . . Unidentified Prototypes . | . . . Parts Lost 7 | . 3 4 Power 3 | . 2 1 Propulsion 2 | . . 2 Utility . | . . . Weapon 2 | . 1 1 Highest Loss Streak 2 | . 2 2 To Critical Strikes . | . . . Average Backups 7 | 4 7 9 Power . | . . . Propulsion 3 | 3 4 1 Utility 1 | . 1 3 Weapon 2 | 1 2 3 Tool/Special . | . . . Unused Backups 7 | . 2 5 Power 1 | . . 1 Propulsion 1 | . 1 . Utility 2 | . . 2 Weapon 3 | . 1 2 Tool/Special . | . . . Average Slot Usage (%) 98 | . 98 98 Engine 12 | . 12 13 Leg 8 | . 10 . Wheel 4 | . . 19 Hover 14 | . 17 7 Device 14 | . 14 14 Storage 14 | . 14 14 Energy Gun 19 | . 17 27 Ballistic Gun 5 | . 6 . Impact Weapon 2 | . 3 . Peak Build Rating 13 | 9 12 13 Average Rating 9 | 5 8 10 On Entrance 5 | . 9 7 Avg Prop Armor Cover (%) . | . . . Naked Turns . | . . . Heaviest Build 52 | 12 16 52 Greatest Support 40 | 20 40 20 Greatest Overweight (x) 5 | . 1 5 Average Overweight (x) . | . . 1 Largest Inventory Capacity 20 | 8 8 20 Average Capacity 9 | 6 8 16 Most Carried 19 | 7 8 19 Average Carried 8 | 5 7 13 Final Capacity 20 | 8 8 20 Final Carried 18 | 7 7 18 Class Distribution -------------------- 98% | Mutant Dominant Class ---------------- Mutant | -10/Materials Mutant | -10/Subcaves Resources | -11 -10 -10 ----------- Run | Yrd Mat Sub Matter Collected 702 | 248 341 113 Remotely . | . . . Salvage Created 906 | 11 634 261 Parts 53 | 5 38 10 Haulers Intercepted 2 | . 2 . Recyclers Shooed 1 | . 1 . Parts Field Recycled . | . . . Retrieved Matter . | . . . Parts Self-Destructed 16 | . . 16 Prevented . | . . . Parts Restored . | . . . Kills | -11 -10 -10 ------- Run | Yrd Mat Sub Combat Hostiles Destroyed 20 | . 12 8 Melee 1 | . 1 . Guns 18 | . 10 8 Classes Destroyed 8 | 1 5 2 Worker 2 | . 2 . Tunneler 1 | 1 . . Hauler 2 | . 2 . Turret 1 | . . 1 Watcher 3 | . 3 . Swarmer 8 | . 3 5 Grunt 11 | . 9 2 Subdweller 1 | . . 1 Best Kill Streak 6 | 1 6 5 Combat Bots Only 5 | . 4 5 Max Kills in Single Turn 1 | 1 1 1 Gunslinging . | . . . Exploded . | . . . Melee 1 | . 1 . Uniques/NPCs Destroyed . | . . . Combat | -11 -10 -10 -------- Run | Yrd Mat Sub Hostile Shots Fired 145 | . 51 94 Missed 53 | . 12 41 Hits 92 | . 39 53 Projectile 92 | . 39 53 Critical Strikes 3 | . 3 . Damage Taken 1038 | . 531 507 Core 272 | . 105 167 Absorbed by Shields . | . . . Regen/Repaired (Parts) 45 | . 45 . Core Remaining (%) 100 | 100 . . Volleys Fired 87 | 1 57 29 Largest 2 | 2 2 2 Hottest 115 | 40 115 110 Shots Fired 169 | 2 109 58 Gun 164 | 2 104 58 Cannon . | . . . Launcher . | . . . Special 5 | . 5 . Kinetic 49 | 2 47 . Thermal 120 | . 62 58 Explosive . | . . . Electromagnetic . | . . . Robot Hit Streak 10 | 1 10 8 Robot Miss Streak 3 | 1 3 3 Penetration Max . | . . . Secondary Targets 4 | . 3 1 Max Gunslinging Chain 1 | . 1 1 Shots Hit Robots 102 | 1 63 38 Core Hits 48 | 1 34 13 Critical Kills . | . . . Critical Parts Destroyed 2 | . 2 . Critical Strikes 9 | . 6 3 Burn 7 | . 4 3 Smash 2 | . 2 . Melee Attacks 19 | . 19 . Impact 19 | . 19 . Slashing . | . . . Piercing . | . . . Sneak Attacks 2 | . 2 . Combat Hostiles 1 | . 1 . Follow-up Attacks . | . . . Damage Inflicted 1475 | 12 914 549 Guns 1291 | 12 730 549 Cannons . | . . . Explosions . | . . . Melee 184 | . 184 . Ramming . | . . . Kinetic 243 | 12 231 . Thermal 1048 | . 499 549 Explosive . | . . . Electromagnetic . | . . . Impact 184 | . 184 . Slashing . | . . . Piercing . | . . . Highest Corruption 1 | . 1 1 Average Corruption 1 | . 1 1 Corruption Purged . | . . . Corruption Blocked . | . . . Effects 5 | . 1 4 Matter Fused 2 | . . 2 Data Loss (minor) 2 | . . 2 Misfires 1 | . 1 . Overload Shots . | . . . Overflow Damage 120 | . 120 . Projectiles . | . . . Explosions 14 | . 14 . Melee 106 | . 106 . Knockbacks 2 | . 2 . Impact 2 | . 2 . Kinetic . | . . . Secondary . | . . . Self-Inflicted Damage 74 | . 74 . Shots 1 | . 1 . Rammed . | . . . Targets Rammed . | . . . Kicked . | . . . Crushed . | . . . Highest Temperature 211 | . 211 . Average Temperature 83 | . 83 . Received Heat Transfer 438 | . 252 186 Siege Activations . | . . . Martial Activations . | . . . Shielding Activations . | . . . Robots Disrupted . | . . . Combat Hostiles . | . . . Robots Corrupted 2 | . 2 . Combat Hostiles 1 | . 1 . Parts Fried 2 | . 2 . Impact Corruptions 4 | . 4 . Robots Melted . | . . . Combat Hostiles . | . . . Parts Melted 4 | . 2 2 Heat Transferred 3079 | . 1630 1449 Parts Sabotaged . | . . . Parts Stolen . | . . . Parts Stripped . | . . . Power Chain Reactions . | . . . Alert | -11 -10 -10 ------- Run | Yrd Mat Sub Maximum Alert Level 1 | . 1 . Low Security (%) 96 | 100 96 . Level 1 3 | . 3 . Level 2 . | . . . Level 3 . | . . . Level 4 . | . . . Level 5 . | . . . High Security . | . . . Max Security . | . . . Peak Influence 217 | 5 217 . Initial . | . . . Average 84 | . 88 . Influence Increases 850 | 5 605 240 Destroy 0b10 Robot/C 400 | . 240 160 Destroy 0b10 Robot/NC 40 | 5 35 . Destroy Leader 90 | . 70 20 Successful Hack 30 | . 30 . Select Force Hacks 60 | . 60 . Disable Machine 60 | . 60 . Destroy Structure 35 | . 35 . Lose Combat Pursuer 135 | . 75 60 Influence Decreases 772 | 5 549 218 Entered New Map 28 | . . 28 Time Decay 674 | 5 519 150 Lost Part 70 | . 30 40 Squads Dispatched 3 | . 3 . Investigation 2 | . 2 . Extermination . | . . . Reinforcement 1 | . 1 . Assault . | . . . Garrison . | . . . Intercept . | . . . Searches Triggered . | . . . Construction Impeded . | . . . Haulers Reinforced . | . . . Active Scanning Responses . | . . . Cargo Convoy Interrupts . | . . . Stealth | -11 -10 -10 --------- Run | Yrd Mat Sub Distress Signals 3 | . 3 . Communications Jammed . | . . . Distress Signals . | . . . Times Spotted 38 | . 23 15 Peak Tracking Total 5 | . 5 5 Tactical Retreats 7 | . 3 4 Traps | -11 -10 -10 ------- Run | Yrd Mat Sub Traps Triggered . | . . . Indirectly . | . . . Trap Hack Attempts . | . . . Triggered . | . . . Disarmed . | . . . Reprogrammed . | . . . Reused . | . . . Traps Extracted . | . . . Installed . | . . . Triggered . | . . . Most Traps Carried 1 | . . 1 Machines | -11 -10 -10 ---------- Run | Yrd Mat Sub Machines Disabled 5 | . 4 1 Max in Single Turn 3 | . 3 1 Machines Repaired . | . . . Machines Dismantled . | . . . Machines Sabotaged . | . . . Overloaded Fab Kills . | . . . Hacking | -11 -10 -10 --------- Run | Yrd Mat Sub Machines Accessed 10 | . 10 . Terminals 7 | . 7 . Fabricators . | . . . Repair Stations 1 | . 1 . Recycling Units 2 | . 2 . Scanalyzers . | . . . Garrison Access . | . . . Total Hacks 39 | . 39 . Successful 22 | . 22 . Failed 17 | . 17 . Catastrophic . | . . . Database Lockouts . | . . . Manual 27 | . 27 . Terminals 28 | . 28 . Fabricators . | . . . Repair Stations 2 | . 2 . Recycling Units 9 | . 9 . Scanalyzers . | . . . Garrison Access . | . . . Terminal Hacks 8 | . 8 . Robot Analysis 4 | . 4 . Prototype ID Bank 2 | . 2 . Terminal Index 1 | . 1 . Locate Traps 1 | . 1 . Fabricator Hacks . | . . . Repair Station Hacks 2 | . 2 . Scan Component 1 | . 1 . Repair 1 | . 1 . Recycling Unit Hacks 1 | . 1 . Retrieve Components 1 | . 1 . Scanalyzer . | . . . Garrison Access Hacks . | . . . Unauthorized Hacks 11 | . 11 . Terminals 4 | . 4 . Botnet 2 | . 2 . Disrupt 1 | . 1 . Operators 1 | . 1 . Fabricators . | . . . Repair Stations . | . . . Recycling Units 7 | . 7 . Monitor 1 | . 1 . Reject 2 | . 2 . Recyclers 1 | . 1 . Mask 1 | . 1 . Tunnel 2 | . 2 . Scanalyzers . | . . . Garrison Access . | . . . Data Cores Recovered . | . . . Used . | . . . Hacking Detections 10 | . 10 . Full Trace Events 6 | . 6 . Feedback Events 1 | . 1 . Corruption 1 | . 1 . Feedback Blocked . | . . . Robot Schematics Acquired . | . . . Robots Built . | . . . Authchips . | . . . Time . | . . . Total Robot Build Rating . | . . . Part Schematics Acquired . | . . . Parts Built . | . . . Authchips . | . . . Time . | . . . Total Part Build Rating . | . . . Part Studies Acquired . | . . . Parts Repaired 1 | . 1 . Time 26 | . 26 . Parts Recycled . | . . . Recycled Matter . | . . . Retrieved Matter . | . . . Retrieved Components . | . . . Parts Scanalyzed . | . . . Part Schematics Acquired . | . . . Parts Damaged . | . . . Bothacking | -11 -10 -10 ------------ Run | Yrd Mat Sub Used RIF Installer . | . . . Robots Hacked . | . . . Non-combat . | . . . Combat . | . . . Robot Hacks Applied . | . . . Relay Couplers Released . | . . . Fabnet Peak Effective % . | . . . Robots Rewired . | . . . Allies Hacked . | . . . Hacks Repelled . | . . . Allies | -11 -10 -10 -------- Run | Yrd Mat Sub Total Allies . | . . . Largest Group . | . . . Highest-Rated Group . | . . . Highest-Rated Ally . | . . . Total Orders . | . . . Ally Attacks . | . . . Total Damage . | . . . Kills . | . . . Allies Corrupted . | . . . Allies Melted . | . . . Intel | -11 -10 -10 ------- Run | Yrd Mat Sub Active Infowar (turns) 779 | 29 686 64 Sensors 300 | . 236 64 Terrain 479 | 29 450 . Robot Analysis Total 4 | . 4 . Derelict Logs Recovered 1 | . . 1 Drone Launches . | . . . Drone Recoveries . | . . . Exploration | -11 -10 -10 ------------- Run | Yrd Mat Sub Turns Passed 2308 | 85 1754 469 Spaces Moved 2006 | 60 1588 358 Core 10 | 10 . . Treads 4 | . 4 . Legs 394 | 50 344 . Wheels 254 | . . 254 Hover 1344 | . 1240 104 Flight . | . . . Fastest Speed 50 | 50 56 56 Average Speed 75 | 108 70 92 Slowest Speed 160 | 120 160 155 Overloaded Moves . | . . . Propulsion Burnouts . | . . . Robots Hopped . | . . . Potential Cave-ins . | . . . Cave-ins Triggered . | . . . Exploration Rate (%) 40 | 3 100 18 Regions Visited 2 Branch Regions 1 Pre-discovered Areas 2 | . 2 . Known Exits Taken . | . . . Unknown Exits Taken 2 | 1 1 . Scrap Searched . | . . . Spaces Dug 14 | . 14 . Terrain Destroyed 39 | . 39 . Melee 9 | . 9 . Projectile 5 | . 5 . AOE 25 | . 25 . Terrain Rammed . | . . . Walls Destroyed . | . . . Machines Disabled . | . . . Actions | -11 -10 -10 --------- Run | Yrd Mat Sub Total 2581 | 74 2071 436 Wait 387 | . 365 22 Move 2004 | 59 1587 358 Hop . | . . . Pick Up 29 | 7 7 15 Fast Attach 14 | 7 7 . Attach 5 | . . 5 Detach 1 | . . 1 Swap 22 | . 16 6 Drop 13 | . 13 . Fire 87 | 1 57 29 Melee 19 | . 19 . Ram . | . . . Kick . | . . . Crush . | . . . Escape Stasis . | . . . Rewire . | . . . Trap . | . . . Miscellaneous . | . . . Route ------- -11/Scrapyard -10/Materials (discovered 5 exits: [*Mat x3] / [*Min] / [*Sub]) -10/Subcaves (discovered 2 exits: [*Mat] / [*Rec]) History --------- Turn | Location | Event 21 | -11/Scrapyard | Discovered new exit (range 15) 86 | -11/Scrapyard | Entered Materials 304 | -10/Materials | Build established: Mutant 350 | -10/Materials | Discovered new exit (range 10) 486 | -10/Materials | Discovered new exit (range 16) 825 | -10/Materials | Discovered new exit (range 16) 983 | -10/Materials | Discovered new exit (range 12) 1421 | -10/Materials | Discovered new exit (range 6) 1602 | -10/Materials | Repaired Med. Laser 1840 | -10/Materials | Entered Subcaves 1841 | -10/Subcaves | Approached by a straggling Scientist 1846 | -10/Subcaves | Discovered new exit (range 5) 1893 | -10/Subcaves | Core integrity fell below 50% 1944 | -10/Subcaves | Discovered new exit (range 11) 2050 | -10/Subcaves | A swath of the cavern ceiling suddenly collapsed 2156 | -10/Subcaves | Learned 2 Materials zone layouts 2241 | -10/Subcaves | Core integrity fell below 20% 2309 | -10/Subcaves | Destroyed by PT-WXI(R) with Subdweller Machine Gun Last Messages --------------- 02113_ Acquired 10 matter. 02156_ Acquired derelict log, extracted data. Data stored: Materials zone layouts (x2). 02229_ S-10 Pest destroyed. 02234_ Subatomizers dissect the Lgt. Assault Rifle. 02235_ S-10 Pest destroyed. 02240_ System corrupted: Component data lost. 02240_ Lgt. Assault Rifle fries itself beyond repair. 02241_ Flight Unit fries itself beyond repair. 02242_ Wheel destroyed. 02247_ Flight Unit fries itself beyond repair. 02250_ G-47 Trooper destroyed. 02251_ Lgt. Ion Engine fries itself beyond repair. 02256_ G-34 Mercenary destroyed. 02257_ Particle Gun fries itself beyond repair. 02258_ Subatomizers dissect the Ion Engine. 02262_ Acquired Ion Engine. 02267_ Acquired 10 matter. 02280_ System corrupted: Matter fused (-8). Map ----- +----------------------------------------------------+ | ??????????????????????????????????# #"# # # | | ??????????????????????????????????##"""## # | | ??????????????????????????????????###"##### | | ??????????????????????????????????# ###???# # | | ??????????????????????????????????## ???# #### | | ??????????????????????????????????? ???### ##? | | ??????????????????????????????????# ????# # ## | | ??????????????????????????????????# #????##### | | ??????????????????????????????????# # ????????## | | ?????????????????????????????????? #?#?????????## | | ?????????????????????????????????# ?????????????# | | ?????????????????????????????????"# ?????????????? | | ????????????????????????????????##" ?????????????? | | ???????????????????????# ???????";###???????##### | | ??????????????????????## ????###;;""#???????# # | | ??????????????????????# ???##;#;#";???????## | | ?????????????????###??# #### ;##;###?????# | | ????????????????## #??# ;;; ######## | | ????????????????# ???# # # ## # # | | ????????????????# ???# ## | | ????????????????# #???# | | ????????????????# #### # # | | ????????????????# # ###### | | ????????????????# ##???## | | ?????????????????# << ##???## | | ?????????????????# &@<< ##?### | | ????????????????# R # R R #?# | | ????????????? " #??#